[Event "1000GM Schev-G6 March 2024"]
[Site "Santa Clara"]
[Date "2024.03.10"]
[Round "4.1"]
[White "Lorenzana, Wilson Estuardo"]
[Black "Yuan, Serena"]
[Result "1-0"]
[ECO "B33"]
[WhiteElo "2074"]
[BlackElo "1929"]
[Annotator "RC"]
[PlyCount "66"]
[EventDate "2024.03.06"]
[EventType "schev"]
[EventCountry "USA"]
[SourceTitle "playchess.com"]
[Source "ChessBase"]
[SourceQuality "1"]
[TimeControl "5400+30"]

1. e4 {[%emt 0:03:53]} c5 {[%emt 0:00:11]} 2. Nf3 {[%emt 0:00:05]} Nc6 {[%emt 0:00:06]} 3. d4 {[%emt 0:00:04]} cxd4 {[%emt 0:00:09]} 4. Nxd4 {[%emt 0:00:02]} Nf6 {[%emt 0:00:08]} 5. Nc3 {[%emt 0:00:03]} e5 {[%emt 0:00:09]} 6. Ndb5 {[%emt 0:00:02]} d6 {[%emt 0:00:09]} 7. Bg5 {[%emt 0:00:03]} a6 {[%emt 0:00:07]} 8. Na3 {[%emt 0:00:05]} b5 {[%emt 0:00:06]} 9. Bxf6 {[%emt 0:00:05]} gxf6 {[%emt 0:00:07]} 10. Nd5 {[%emt 0:00:05]} Bg7 {[%emt 0:00:08]} 11. Bd3 {[%emt 0:03:19]} Ne7 {[%emt 0:00:20]} 12. c3 {[%emt 0:15:52]} Nxd5 {[%emt 0:00:54]} 13. exd5 {[%emt 0:00:02]} f5 {[%emt 0:01:43]} 14. Qh5 {[%emt 0:10:09]} e4 {[%emt 0:02:59]} 15. Be2 {[%emt 0:00:02]} b4 {[%emt 0:03:29]} 16. Nc4 {[%emt 0:00:02]} bxc3 {[%emt 0:02:28]} 17. b3 {[%emt 0:00:08]} f4 {[%emt 0:15:35]} 18. f3 {[%emt 0:04:38]} e3 {[%emt 0:08:21]} 19. g3 {[%emt 0:01:10]} Qf6 {[%emt 0:02:35]} 20. Bd3 {[%emt 0:03:20]} h6 {[%emt 0:03:23]} 21. gxf4 {[%emt 0:02:19]} Qxf4 {[%emt 0:05:12]} 22. Ke2 {[%emt 0:02:39]} O-O {[%emt 0:07:34]} 23. Rhg1 {[%emt 0:02:17]} Kh8 {[%emt 0:02:55]} 24. Rg3 {[%emt 0:02:13]} Bd4 {[%emt 0:04:54]} 25. Rag1 {[%emt 0:01:57]} Bd7 {[%emt 0:03:51]} 26. Rg5 {[%emt 0:00:53]} Qf6 {[%emt 0:11:41]} 27. Rg6 {[%emt 0:00:29]} fxg6 {[%emt 0:01:45]} 28. Qxh6+ {[%emt 0:00:13]} Kg8 {[%emt 0:00:30]} 29. Rxg6+ {[%emt 0:00:06]} Kf7 {[%emt 0:00:40]} 30. Rxf6+ {[%emt 0:04:03]} Bxf6 {[%emt 0:00:03]} 31. Bg6+ {[%emt 0:02:59]} Ke7 {[%emt 0:00:49]} 32. Qxe3+ {[%emt 0:00:03]} Kd8 {[%emt 0:00:51]} 33. Qb6+ {[%emt 0:00:08]} Ke7 {[%emt 0:23:08]} 1-0

[Event "1000GM Schev-G6 March 2024"]
[Site "Santa Clara"]
[Date "2024.03.10"]
[Round "4.2"]
[White "Garduno Huerta, Joshua Emiliano"]
[Black "Wu, Jayden"]
[Result "1/2-1/2"]
[ECO "D38"]
[WhiteElo "1941"]
[BlackElo "1909"]
[Annotator "RC"]
[PlyCount "192"]
[EventDate "2024.03.06"]
[EventType "schev"]
[EventCountry "USA"]
[SourceTitle "playchess.com"]
[Source "ChessBase"]
[SourceQuality "1"]
[TimeControl "5400+30"]

1. d4 {[%emt 0:01:00]} Nf6 {[%emt 0:00:10]} 2. c4 {[%emt 0:00:07]} e6 {[%emt 0:00:03]} 3. Nc3 {[%emt 0:00:05]} Bb4 {[%emt 0:00:04]} 4. Qc2 {[%emt 0:00:06]} d5 {[%emt 0:00:06]} 5. Nf3 {[%emt 0:01:42]} c5 {[%emt 0:01:52]} 6. cxd5 {[%emt 0:08:49]} Nxd5 {[%emt 0:10:29]} 7. Bd2 {[%emt 0:04:08]} O-O {[%emt 0:11:22]} 8. Nxd5 {[%emt 0:07:56]} Qxd5 {[%emt 0:02:54]} 9. Bxb4 {[%emt 0:03:53]} cxb4 {[%emt 0:00:06]} 10. e3 {[%emt 0:00:16]} Nc6 {[%emt 0:04:06]} 11. Bd3 {[%emt 0:01:54]} h6 {[%emt 0:00:36]} 12. Bh7+ {[%emt 0:02:20]} Kh8 {[%emt 0:00:11]} 13. Be4 {[%emt 0:00:02]} Qb5 {[%emt 0:10:00]} 14. Qe2 {[%emt 0:06:14]} Qxe2+ {[%emt 0:02:36]} 15. Kxe2 {[%emt 0:00:11]} Bd7 {[%emt 0:00:04]} 16. Rac1 {[%emt 0:01:47]} Rac8 {[%emt 0:00:58]} 17. Rc2 {[%emt 0:01:53]} a5 {[%emt 0:14:56]} 18. Rhc1 {[%emt 0:00:55]} g5 {[%emt 0:06:09]} 19. Bxc6 {[%emt 0:06:14]} Bxc6 {[%emt 0:07:53]} 20. Ne5 {[%emt 0:00:49]} Bb5+ {[%emt 0:00:50]} 21. Kd2 {[%emt 0:00:36]} Rxc2+ {[%emt 0:01:28]} 22. Rxc2 {[%emt 0:00:10]} Bf1 {[%emt 0:02:39]} 23. g3 {[%emt 0:03:06]} Kg7 {[%emt 0:03:43]} 24. Rc7 {[%emt 0:01:24]} Ba6 {[%emt 0:00:54]} 25. Nd7 {[%emt 0:01:17]} Rd8 {[%emt 0:00:29]} 26. Nc5 {[%emt 0:00:16]} Rd5 {[%emt 0:03:12]} 27. Nxe6+ {[%emt 0:02:33]} Kf6 {[%emt 0:00:09]} 28. Nc5 {[%emt 0:00:06]} g4 {[%emt 0:00:10]} 29. Nxa6 {[%emt 0:05:05]} bxa6 {[%emt 0:00:06]} 30. Rc6+ {[%emt 0:00:05]} Kg7 {[%emt 0:01:59]} 31. Rxa6 {[%emt 0:00:41]} Rh5 {[%emt 0:00:14]} 32. e4 {[%emt 0:01:40]} Rxh2 {[%emt 0:00:17]} 33. Ke3 {[%emt 0:00:04]} Rh1 {[%emt 0:00:21]} 34. Rxa5 {[%emt 0:01:10]} Re1+ {[%emt 0:00:24]} 35. Kf4 {[%emt 0:00:07]} Re2 {[%emt 0:00:10]} 36. Kxg4 {[%emt 0:00:18]} Rxe4+ {[%emt 0:00:06]} 37. Kf5 {[%emt 0:01:26]} Rxd4 {[%emt 0:02:05]} 38. b3 {[%emt 0:00:18]} Rd2 {[%emt 0:00:20]} 39. f4 {[%emt 0:00:14]} Rg2 {[%emt 0:01:27]} 40. g4 {[%emt 0:02:27]} Rh2 {[%emt 0:00:20]} 41. Ra4 {[%emt 0:08:08]} Rg2 {[%emt 0:00:43]} 42. Ke4 {[%emt 0:05:50]} Re2+ {[%emt 0:02:37]} 43. Kd3 {[%emt 0:00:07]} Rg2 {[%emt 0:00:18]} 44. Rxb4 {[%emt 0:11:00]} Rxa2 {[%emt 0:00:12]} 45. Re4 {[%emt 0:00:05]} Rb2 {[%emt 0:02:39]} 46. Kc4 {[%emt 0:00:22]} Rc2+ {[%emt 0:00:30]} 47. Kb5 {[%emt 0:00:08]} Kf6 {[%emt 0:00:14]} 48. b4 {[%emt 0:00:30]} Rc8 {[%emt 0:01:23]} 49. Kb6 {[%emt 0:15:26]} Rg8 {[%emt 0:00:26]} 50. Kc7 {[%emt 0:00:00]} Rxg4 {[%emt 0:00:39]} 51. b5 {[%emt 0:00:00]} Rg1 {[%emt 0:02:07]} 52. Rc4 {[%emt 0:00:00]} h5 {[%emt 0:02:23]} 53. b6 {[%emt 0:00:00]} Kf5 {[%emt 0:01:43]} 54. Rb4 {[%emt 0:00:00]} Rg8 {[%emt 0:01:53]} 55. b7 {[%emt 0:00:00]} h4 {[%emt 0:00:15]} 56. Rd4 {[%emt 0:01:59]} h3 {[%emt 0:00:28]} 57. Rd5+ {[%emt 0:01:14]} Kg4 {[%emt 0:00:48]} 58. Rg5+ {[%emt 0:00:36]} Rxg5 {[%emt 0:00:06]} 59. b8=Q {[%emt 0:00:34]} Kxf4 {[%emt 0:00:13]} 60. Qb4+ {[%emt 0:00:28]} Kg3 {[%emt 0:01:07]} 61. Qd6+ {[%emt 0:00:15]} Kg4 {[%emt 0:00:45]} 62. Qd1+ {[%emt 0:00:51]} Kh4 {[%emt 0:00:27]} 63. Qd4+ {[%emt 0:00:24]} Kg3 {[%emt 0:00:50]} 64. Qe3+ {[%emt 0:00:27]} Kg4 {[%emt 0:00:33]} 65. Qg1+ {[%emt 0:00:24]} Kh4 {[%emt 0:00:36]} 66. Qf2+ {[%emt 0:00:16]} Kg4 {[%emt 0:00:18]} 67. Kd6 {[%emt 0:00:46]} Rf5 {[%emt 0:01:08]} 68. Qg1+ {[%emt 0:00:19]} Kh4 {[%emt 0:00:25]} 69. Qe1+ {[%emt 0:00:08]} Kg4 {[%emt 0:00:15]} 70. Qe4+ {[%emt 0:00:27]} Rf4 {[%emt 0:00:08]} 71. Qe2+ {[%emt 0:00:24]} Kg3 {[%emt 0:00:19]} 72. Qe3+ {[%emt 0:01:19]} Rf3 {[%emt 0:00:39]} 73. Qg1+ {[%emt 0:00:08]} Kf4 {[%emt 0:00:10]} 74. Qh2+ {[%emt 0:00:31]} Kg4 {[%emt 0:01:21]} 75. Ke5 {[%emt 0:00:14]} f6+ {[%emt 0:00:20]} 76. Kd4 {[%emt 0:00:35]} f5 {[%emt 0:00:11]} 77. Qg1+ {[%emt 0:00:35]} Rg3 {[%emt 0:00:20]} 78. Qd1+ {[%emt 0:00:30]} Kg5 {[%emt 0:01:12]} 79. Qd2+ {[%emt 0:00:58]} f4 {[%emt 0:00:08]} 80. Qa5+ {[%emt 0:00:30]} Kg4 {[%emt 0:00:11]} 81. Qd2 {[%emt 0:00:11]} Kg5 {[%emt 0:00:24]} 82. Qe2 {[%emt 0:00:22]} Re3 {[%emt 0:00:12]} 83. Qf2 {[%emt 0:00:33]} Kg4 {[%emt 0:00:08]} 84. Qh2 {[%emt 0:00:30]} Kg5 {[%emt 0:00:09]} 85. Qg1+ {[%emt 0:00:05]} Rg3 {[%emt 0:00:24]} 86. Qf2 {[%emt 0:00:17]} Re3 {[%emt 0:00:04]} 87. Qc2 {[%emt 0:00:08]} Kg4 {[%emt 0:01:26]} 88. Qg6+ {[%emt 0:00:11]} Kh4 {[%emt 0:00:23]} 89. Qf5 {[%emt 0:00:26]} Kg3 {[%emt 0:02:02]} 90. Qg5+ {[%emt 0:00:09]} Kf3 {[%emt 0:00:43]} 91. Qh5+ {[%emt 0:00:42]} Kg2 {[%emt 0:01:31]} 92. Qg4+ {[%emt 0:00:28]} Rg3 {[%emt 0:00:03]} 93. Qxf4 {[%emt 0:01:19]} h2 {[%emt 0:00:06]} 94. Qe4+ {[%emt 0:00:48]} Kg1 {[%emt 0:00:16]} 95. Qe1+ {[%emt 0:00:11]} Kg2 {[%emt 0:00:04]} 96. Qe2+ {[%emt 0:01:08]} Kg1 {[%emt 0:00:06]} 1/2-1/2

[Event "1000GM Schev-G6 March 2024"]
[Site "Santa Clara"]
[Date "2024.03.10"]
[Round "4.3"]
[White "Qi, Jenny"]
[Black "Monroy G., Nataly A."]
[Result "0-1"]
[ECO "B78"]
[WhiteElo "1764"]
[BlackElo "1925"]
[Annotator "RC"]
[PlyCount "88"]
[EventDate "2024.03.06"]
[EventType "schev"]
[EventCountry "USA"]
[SourceTitle "playchess.com"]
[Source "ChessBase"]
[SourceQuality "1"]
[TimeControl "5400+30"]

1. e4 {[%emt 0:02:34]} c5 {[%emt 0:00:12]} 2. Nf3 {[%emt 0:00:09]} Nc6 {[%emt 0:00:10]} 3. d4 {[%emt 0:00:16]} cxd4 {[%emt 0:00:13]} 4. Nxd4 {[%emt 0:00:11]} g6 {[%emt 0:00:14]} 5. Nc3 {[%emt 0:00:25]} Bg7 {[%emt 0:01:26]} 6. Be3 {[%emt 0:00:41]} Nf6 {[%emt 0:01:09]} 7. Bc4 {[%emt 0:00:47]} d6 {[%emt 0:01:37]} 8. f3 {[%emt 0:03:02]} O-O {[%emt 0:01:54]} 9. Qd2 {[%emt 0:01:17]} Bd7 {[%emt 0:02:31]} 10. h4 {[%emt 0:06:17]} h5 {[%emt 0:09:32]} 11. O-O-O {[%emt 0:00:51]} Rc8 {[%emt 0:01:09]} 12. Bb3 {[%emt 0:00:34]} Ne5 {[%emt 0:02:44]} 13. Bg5 {[%emt 0:01:45]} Nc4 {[%emt 0:00:55]} 14. Bxc4 {[%emt 0:03:22]} Rxc4 {[%emt 0:01:41]} 15. Nb3 {[%emt 0:07:56]} a5 {[%emt 0:04:17]} 16. e5 {[%emt 0:09:47]} a4 {[%emt 0:05:03]} 17. exf6 {[%emt 0:15:32]} exf6 {[%emt 0:00:11]} 18. Bf4 {[%emt 0:03:03]} axb3 {[%emt 0:02:00]} 19. cxb3 {[%emt 0:02:44]} Rc8 {[%emt 0:03:46]} 20. Bxd6 {[%emt 0:10:41]} Re8 {[%emt 0:00:09]} 21. Bf8 {[%emt 0:05:20]} Rxf8 {[%emt 0:02:43]} 22. Qxd7 {[%emt 0:00:21]} Qa5 {[%emt 0:00:18]} 23. Rd5 {[%emt 0:10:39]} Rxc3+ {[%emt 0:01:52]} 24. Kb1 {[%emt 0:01:24]} Rc5 {[%emt 0:00:37]} 25. Rxc5 {[%emt 0:03:53]} Qxc5 {[%emt 0:00:04]} 26. Rc1 {[%emt 0:01:20]} Qe5 {[%emt 0:01:53]} 27. Qc7 {[%emt 0:01:01]} Qf5+ {[%emt 0:03:08]} 28. Qc2 {[%emt 0:00:26]} Qe5 {[%emt 0:01:36]} 29. Qc7 {[%emt 0:00:28]} Qd4 {[%emt 0:00:43]} 30. Qc4 {[%emt 0:02:45]} Qf2 {[%emt 0:00:27]} 31. Qc2 {[%emt 0:00:55]} Qxh4 {[%emt 0:00:20]} 32. Qe4 {[%emt 0:00:25]} Qf2 {[%emt 0:00:36]} 33. Qc2 {[%emt 0:00:12]} Qg3 {[%emt 0:00:23]} 34. Qe2 {[%emt 0:00:39]} f5 {[%emt 0:00:45]} 35. Qc2 {[%emt 0:00:14]} Kh7 {[%emt 0:06:27]} 36. Rd1 {[%emt 0:00:56]} Qe5 {[%emt 0:00:21]} 37. Rd7 {[%emt 0:00:26]} Rc8 {[%emt 0:03:47]} 38. Qf2 {[%emt 0:00:47]} Qe6 {[%emt 0:02:29]} 39. Rd1 {[%emt 0:00:38]} f4 {[%emt 0:00:43]} 40. Re1 {[%emt 0:00:37]} Qd5 {[%emt 0:01:06]} 41. Qe2 {[%emt 0:00:36]} Qf5+ {[%emt 0:00:30]} 42. Qe4 {[%emt 0:00:51]} Re8 {[%emt 0:00:11]} 43. Qxf5 {[%emt 0:00:35]} Rxe1+ {[%emt 0:00:03]} 44. Kc2 {[%emt 0:00:07]} gxf5 {[%emt 0:00:04]} 0-1

[Event "1000GM Schev-G6 March 2024"]
[Site "Santa Clara"]
[Date "2024.03.10"]
[Round "4.5"]
[White "Rivera, Alberto"]
[Black "Penagalapati, Anvitha"]
[Result "1-0"]
[ECO "D00"]
[WhiteElo "2290"]
[BlackElo "1642"]
[Annotator "TA"]
[PlyCount "77"]
[EventDate "2024.03.06"]
[EventType "schev"]
[EventCountry "USA"]
[SourceTitle "playchess.com"]
[Source "ChessBase"]
[SourceQuality "1"]
[TimeControl "5400+30"]

{[%evp 9,77,-27,-29,-32,-32,-25,-27,-30,-21,-31,-35,-67,-56,-77,-24,-37,0,4,132,107,117,125,127,127,179,177,185,67,76,80,130,16,10,25,4,14,38,43,47,28,75,11,20,0,33,28,17,20,89,91,98,101,99,85,64,77,206,208,208,197,197,152,351,327,400,393,548,542,701,701]} 1. d4 {[%emt 0:07:51]} d5 {[%emt 0:00:00]} 2. Nc3 {[%emt 0:00:04]} Nf6 {[%emt 0:00:00]} 3. Bf4 {[%emt 0:00:06]} e6 {[%emt 0:00:00]} 4. e3 {[%emt 0:00:45]} Bb4 {[%emt 0:00:05]} 5. Bd3 {[%emt 0:00:47]} c5 {[%emt 0:00:20]} 6. dxc5 {[%emt 0:03:01]} Nbd7 {[%emt 0:00:21]} 7. Nge2 {[%emt 0:11:05]} a6 {[%emt 0:01:50][%cal Oe6e5]} 8. a3 {[%emt 0:02:23] Black has an edge.} Bxc5 {[%emt 0:04:08]} 9. Bg3 {[%emt 0:03:07]} Nh5 {[%emt 0:05:17]} 10. Nf4 {[%emt 0:09:10]} Nxg3 {[%emt 0:04:08]} 11. hxg3 {[%emt 0:01:31][%cal Bh2g3,Bg3g4,Bg4g5][%mdl 32]} Nf6 {[%emt 0:02:08] Prevents Qg4} (11... h6 $17) 12. Qf3 $11 {[%emt 0:21:21]} Bd6 {[%emt 0:15:55]} 13. g4 {[%emt 0:06:52]} Be5 {[%emt 0:21:34]} (13... g6 $11) 14. g5 $16 {[%emt 0:03:01]} Bxc3+ {[%emt 0:01:40]} 15. bxc3 {[%emt 0:00:37]} Nd7 {[%emt 0:10:03]} 16. g6 {[%emt 0:09:36] White has more active pieces. The black rooks are passive.} (16. Bxh7 $6 Qxg5 17. Nxe6 fxe6 $11) 16... Ne5 {[%emt 0:01:11]} (16... Nf6 $16) 17. gxf7+ $18 {[%emt 0:01:05]} Nxf7 {[%emt 0:03:16]} 18. Rxh7 {[%emt 0:12:52]} (18. Bxh7 $18 Ng5 19. Qh5+ Kd7 20. Qg6 Rxh7 21. Rxh7 Nxh7 22. Qxh7) 18... Rxh7 $14 {[%emt 0:01:07]} 19. Bxh7 {[%emt 0:00:04] And now 0-0-0 would win.} Qf6 {[%emt 0:02:16] [#]} (19... Qh4 $142 20. Bd3 Ne5 21. Qh5+ Qxh5 22. Nxh5 Kf7) 20. Ne2 {[%emt 0:03:15]} (20. O-O-O $1 $16) 20... Qh6 $11 {[%emt 0:11:34]} 21. Qh3 {[%emt 0:00:55]} Qxh3 {[%emt 0:00:19]} 22. gxh3 {[%emt 0:00:02]} e5 {[%emt 0:01:50]} 23. O-O-O {[%emt 0:00:40]} Be6 {[%emt 0:00:47][%cal Oe8e7]} 24. f4 {[%emt 0:00:32]} Rd8 {[%emt 0:02:14]} (24... Ke7 $11) 25. f5 {[%emt 0:01:18]} ({Better is} 25. Rg1 $16) 25... Bc8 {[%emt 0:00:18]} 26. h4 {[%emt 0:00:09]} Ke7 {[%emt 0:00:31]} 27. Rg1 $36 {[%emt 0:00:51][%mdl 2048] White has some pressure.} Kf8 {[%emt 0:00:57]} 28. Ng3 {[%emt 0:00:39]} Nh6 {[%emt 0:00:37]} (28... Nd6 $11 {remains equal.}) 29. Nh5 $16 {[%emt 0:00:35]} Rd7 {[%emt 0:04:29]} 30. f6 {[%emt 0:00:34]} gxf6 {[%emt 0:01:48]} 31. Nxf6 {[%emt 0:00:08]} Rf7 {[%emt 0:00:04]} 32. Rg6 {[%emt 0:00:27]} (32. Nxd5 $2 {too greedy.} Rxh7 33. Nf6 Rh8 $19 (33... Rg7 $2 34. Rxg7 Kxg7 35. Ne8+ Kg6 36. Nd6 $19)) 32... Ng4 {[%emt 0:02:35]} 33. Rg8+ $18 {[%emt 0:00:51]} ({Don't take} 33. Nxg4 $6 Rxh7 34. Nxe5 Rxh4 $14) 33... Ke7 {[%emt 0:00:05]} 34. Nxd5+ {[%emt 0:00:22]} ({Stronger than} 34. Nxg4 Bxg4 35. Bg6 Rf3 $11) 34... Kd6 {[%emt 0:00:15]} 35. Be4 {[%emt 0:00:48]} Bd7 {[%emt 0:00:45] This costs Black the game.} (35... Be6 $16 36. Rg6 Nf2) 36. h5 {[%emt 0:00:21][%cal Bh4h5,Bh5h6][%mdl 32]} Be6 {[%emt 0:01:50] [#] ...Rf1+ would now be deadly.} 37. Rg6 {[%emt 0:00:24]} Kd7 {[%emt 0:00:36]} 38. h6 {[%emt 0:00:18]} Bxd5 {[%emt 0:01:38]} 39. Bxd5 {[%emt 0:00:31] Weighted Error Value: White=0.17 (very precise) /Black=0.40.  Loses game:     	---       	Black=1      Mistake:       	White=3     	Black=7      Inaccurate:     	White=1     	Black=3      OK:         	White=14    	Black=8      Best:        	White=3     	Black=4} 1-0

[Event "1000GM Schev-G6 March 2024"]
[Site "Santa Clara"]
[Date "2024.03.11"]
[Round "5.1"]
[White "Yuan, Serena"]
[Black "Garduno Huerta, Joshua Emiliano"]
[Result "0-1"]
[ECO "E01"]
[WhiteElo "1929"]
[BlackElo "1941"]
[Annotator "RC"]
[PlyCount "164"]
[EventDate "2024.03.06"]
[EventType "schev"]
[EventCountry "USA"]
[SourceTitle "playchess.com"]
[Source "ChessBase"]
[SourceQuality "1"]
[TimeControl "5400+30"]

1. d4 {[%emt 0:00:03]} d5 {[%emt 0:02:37]} 2. Nf3 {[%emt 0:00:09]} Nf6 {[%emt 0:00:09]} 3. c4 {[%emt 0:00:05]} c6 {[%emt 0:01:01]} 4. Qc2 {[%emt 0:00:10]} e6 {[%emt 0:00:50]} 5. g3 {[%emt 0:00:09]} Nbd7 {[%emt 0:00:28]} 6. Bg2 {[%emt 0:00:14]} Bd6 {[%emt 0:00:13]} 7. O-O {[%emt 0:00:12]} O-O {[%emt 0:00:06]} 8. Nbd2 {[%emt 0:00:12]} e5 {[%emt 0:01:31]} 9. dxe5 {[%emt 0:02:00]} Nxe5 {[%emt 0:00:07]} 10. Nxe5 {[%emt 0:00:52]} Bxe5 {[%emt 0:00:05]} 11. Nf3 {[%emt 0:01:47]} Bd6 {[%emt 0:00:29]} 12. Rd1 {[%emt 0:01:38]} Be6 {[%emt 0:03:28]} 13. Ng5 {[%emt 0:03:25]} Qc7 {[%emt 0:00:21]} 14. cxd5 {[%emt 0:04:20]} cxd5 {[%emt 0:01:21]} 15. Qxc7 {[%emt 0:01:30]} Bxc7 {[%emt 0:00:01]} 16. Be3 {[%emt 0:00:48]} Be5 {[%emt 0:00:44]} 17. Bd4 {[%emt 0:01:26]} Bxd4 {[%emt 0:00:11]} 18. Rxd4 {[%emt 0:00:01]} Rac8 {[%emt 0:00:15]} 19. Rad1 {[%emt 0:00:45]} Rc2 {[%emt 0:00:24]} 20. R4d2 {[%emt 0:00:21]} Rfc8 {[%emt 0:00:01]} 21. h3 {[%emt 0:01:32]} h6 {[%emt 1:26:38]} 22. Nxe6 {[%emt 0:07:02]} fxe6 {[%emt 0:00:00]} 23. e3 {[%emt 0:01:13]} R8c5 {[%emt 0:00:00]} 24. Kf1 {[%emt 0:01:48]} Kf7 {[%emt 0:00:00]} 25. Ke2 {[%emt 0:00:39]} Ke7 {[%emt 0:00:00]} 26. Rxc2 {[%emt 0:06:18]} Rxc2+ {[%emt 0:00:00]} 27. Rd2 {[%emt 0:00:12]} Rxd2+ {[%emt 0:00:00]} 28. Kxd2 {[%emt 0:00:08]} e5 {[%emt 0:00:00]} 29. Kd3 {[%emt 0:02:18]} Kd6 {[%emt 0:00:00]} 30. f4 {[%emt 0:07:40]} Nd7 {[%emt 0:00:00]} 31. g4 {[%emt 0:08:46]} b5 {[%emt 0:00:00]} 32. b4 {[%emt 0:02:44]} Nb6 {[%emt 0:00:00]} 33. g5 {[%emt 0:05:13]} hxg5 {[%emt 0:00:00]} 34. fxg5 {[%emt 0:00:13]} Ke6 {[%emt 0:00:00]} 35. h4 {[%emt 0:00:46]} Kf5 {[%emt 0:00:00]} 36. Bh3+ {[%emt 0:00:30]} Kg6 {[%emt 0:00:00]} 37. Bg4 {[%emt 0:00:48]} Nc4 {[%emt 0:00:00]} 38. Be6 {[%emt 0:09:34]} Nb6 {[%emt 0:00:00]} 39. Bg4 {[%emt 0:02:25]} Nc4 {[%emt 0:00:00]} 40. Be6 {[%emt 0:02:15]} Kh5 {[%emt 0:00:00]} 41. Bxd5 {[%emt 0:02:01]} Nd6 {[%emt 0:00:00]} 42. g6 {[%emt 0:06:40]} Kxh4 {[%emt 0:00:00]} 43. Ke2 {[%emt 0:05:47]} Kg5 {[%emt 0:00:00]} 44. Kf3 {[%emt 0:00:49]} Kxg6 {[%emt 0:00:00]} 45. Kg4 {[%emt 0:00:50]} Kf6 {[%emt 0:00:00]} 46. Bc6 {[%emt 0:01:05]} e4 {[%emt 0:00:00]} 47. Kf4 {[%emt 0:01:41]} g5+ {[%emt 0:00:00]} 48. Kg4 {[%emt 0:01:05]} Nc4 {[%emt 0:00:00]} 49. Bxe4 {[%emt 0:01:03]} Nxe3+ {[%emt 0:00:00]} 50. Kf3 {[%emt 0:00:29]} Nc4 {[%emt 0:00:00]} 51. Ke2 {[%emt 0:06:04]} Ke5 {[%emt 0:00:00]} 52. Bc6 {[%emt 0:01:20]} Nd6 {[%emt 0:00:00]} 53. Ke3 {[%emt 0:01:17]} Nf5+ {[%emt 0:00:00]} 54. Kd3 {[%emt 0:00:43]} Nd4 {[%emt 0:00:00]} 55. Bd7 {[%emt 0:01:31]} Kd6 {[%emt 0:00:00]} 56. Bg4 {[%emt 0:01:30]} Nc6 {[%emt 0:00:00]} 57. Kc3 {[%emt 0:01:23]} Ne5 {[%emt 0:00:00]} 58. Be2 {[%emt 0:00:36]} a6 {[%emt 0:00:00]} 59. a4 {[%emt 0:01:08]} bxa4 {[%emt 0:00:00]} 60. Bxa6 {[%emt 0:00:09]} g4 {[%emt 0:00:00]} 61. Bf1 {[%emt 0:00:35]} g3 {[%emt 0:04:58]} 62. Kb2 {[%emt 0:00:54]} Nd7 {[%emt 0:00:26]} 63. Ka3 {[%emt 0:00:21]} Nb6 {[%emt 0:00:06]} 64. Bg2 {[%emt 0:00:09]} Ke5 {[%emt 0:00:08]} 65. b5 {[%emt 0:00:40]} Kd4 {[%emt 0:00:23]} 66. Kb4 {[%emt 0:00:19]} Ke3 {[%emt 0:00:19]} 67. Kc3 {[%emt 0:00:41]} Kf2 {[%emt 0:00:09]} 68. Be4 {[%emt 0:00:24]} g2 {[%emt 0:00:18]} 69. Bxg2 {[%emt 0:00:02]} Kxg2 {[%emt 0:00:08]} 70. Kc2 {[%emt 0:00:59]} Kf3 {[%emt 0:00:16]} 71. Kd3 {[%emt 0:00:53]} Kf4 {[%emt 0:00:07]} 72. Kd4 {[%emt 0:00:32]} Kf5 {[%emt 0:00:08]} 73. Kc3 {[%emt 0:00:09]} Ke5 {[%emt 0:00:12]} 74. Kb4 {[%emt 0:00:11]} Kd4 {[%emt 0:00:14]} 75. Ka3 {[%emt 0:00:05]} Kc5 {[%emt 0:00:09]} 76. Ka2 {[%emt 0:00:16]} Kxb5 {[%emt 0:01:15]} 77. Ka3 {[%emt 0:00:05]} Nc4+ {[%emt 0:00:33]} 78. Ka2 {[%emt 0:00:00]} Kb4 {[%emt 0:00:21]} 79. Ka1 {[%emt 0:01:16]} Kb3 {[%emt 0:01:27]} 80. Kb1 {[%emt 0:00:06]} Na3+ {[%emt 0:00:09]} 81. Ka1 {[%emt 0:01:50]} Nc2+ {[%emt 0:00:08]} 82. Kb1 {[%emt 0:00:11]} a3 {[%emt 0:00:03]} 0-1

[Event "1000GM Schev-G6 March 2024"]
[Site "Santa Clara"]
[Date "2024.03.11"]
[Round "5.2"]
[White "Monroy G., Nataly A."]
[Black "Wu, Jayden"]
[Result "1/2-1/2"]
[ECO "E04"]
[WhiteElo "1925"]
[BlackElo "1909"]
[Annotator "RC"]
[PlyCount "85"]
[EventDate "2024.03.06"]
[EventType "schev"]
[EventCountry "USA"]
[SourceTitle "playchess.com"]
[Source "ChessBase"]
[SourceQuality "1"]
[TimeControl "5400+30"]

1. d4 {[%emt 0:00:02]} Nf6 {[%emt 0:00:33]} 2. Nf3 {[%emt 0:00:07]} d5 {[%emt 0:00:11]} 3. c4 {[%emt 0:00:09]} e6 {[%emt 0:00:04]} 4. g3 {[%emt 0:00:36]} dxc4 {[%emt 0:00:09]} 5. Bg2 {[%emt 0:00:50]} Nc6 {[%emt 0:00:11]} 6. O-O {[%emt 0:00:34]} Rb8 {[%emt 0:01:15]} 7. a4 {[%emt 0:04:41]} Be7 {[%emt 0:03:36]} 8. e3 {[%emt 1:27:31]} O-O {[%emt 0:01:50]} 9. Nbd2 {[%emt 0:00:00]} b6 {[%emt 0:09:52]} 10. Nxc4 {[%emt 0:00:00]} Bb7 {[%emt 0:00:23]} 11. Nfe5 {[%emt 0:00:00]} Nxe5 {[%emt 0:01:11]} 12. Nxe5 {[%emt 0:00:00]} Nd5 {[%emt 0:09:11]} 13. Bd2 {[%emt 0:00:00]} c5 {[%emt 0:00:49]} 14. Bc3 {[%emt 0:00:00]} cxd4 {[%emt 0:03:16]} 15. Bxd4 {[%emt 0:00:00]} Bb4 {[%emt 0:04:53]} 16. Nd3 {[%emt 0:00:00]} Ba5 {[%emt 0:03:43]} 17. Bxd5 {[%emt 0:00:00]} Qxd5 {[%emt 0:00:17]} 18. f3 {[%emt 0:00:00]} Ba6 {[%emt 0:00:28]} 19. Rf2 {[%emt 0:00:00]} Bxd3 {[%emt 0:01:21]} 20. Qxd3 {[%emt 0:00:00]} Rfd8 {[%emt 0:00:45]} 21. Qe4 {[%emt 0:00:00]} Rbc8 {[%emt 0:02:44]} 22. Rb1 {[%emt 0:00:00]} Qxe4 {[%emt 0:03:04]} 23. fxe4 {[%emt 0:00:00]} Bb4 {[%emt 0:00:14]} 24. Rbf1 {[%emt 0:00:00]} f6 {[%emt 0:00:27]} 25. e5 {[%emt 0:00:00]} f5 {[%emt 0:00:10]} 26. g4 {[%emt 0:00:00]} g6 {[%emt 0:00:56]} 27. gxf5 {[%emt 0:00:00]} gxf5 {[%emt 0:00:33]} 28. Rg2+ {[%emt 0:00:00]} Kf7 {[%emt 0:04:27]} 29. Kh1 {[%emt 0:00:00]} Rg8 {[%emt 0:05:00]} 30. Rxg8 {[%emt 0:00:00]} Kxg8 {[%emt 0:00:13]} 31. Kg2 {[%emt 0:11:30]} Rc2+ {[%emt 0:01:24]} 32. Rf2 {[%emt 0:00:00]} Rc1 {[%emt 0:03:44]} 33. Kf3 {[%emt 0:00:00]} Bc5 {[%emt 0:01:37]} 34. Bxc5 {[%emt 0:00:00]} Rxc5 {[%emt 0:00:09]} 35. Rd2 {[%emt 0:00:00]} Rxe5 {[%emt 0:02:29]} 36. Rd8+ {[%emt 0:00:00]} Kf7 {[%emt 0:00:20]} 37. Rd7+ {[%emt 0:00:00]} Kf6 {[%emt 0:00:14]} 38. Rxa7 {[%emt 0:00:00]} Ra5 {[%emt 0:00:25]} 39. Rb7 {[%emt 0:00:00]} Rxa4 {[%emt 0:00:53]} 40. Rxb6 {[%emt 0:00:00]} Rh4 {[%emt 0:00:23]} 41. Kg3 {[%emt 0:00:00]} Rg4+ {[%emt 0:00:26]} 42. Kf3 {[%emt 0:00:00]} Rh4 {[%emt 0:00:17]} 43. Kg3 {[%emt 0:00:00]} 1/2-1/2